bitfinex/quotes_BTCUSD_20230405
["timestamp","ask_amount","ask_price","bid_price","bid_amount"]
[1680661272894,0.40800854,28680.0,28679.0,0.011]
[1680661273112,0.70800854,28680.0,28679.0,0.011]
[1680661273319,0.72060454,28680.0,28679.0,0.011]
[1680661273530,0.83084333,28680.0,28679.0,0.011]
[1680661273748,0.75160454,28680.0,28679.0,0.011]
[1680661274020,0.76010454,28680.0,28676.0,0.00018]
[1680661274187,0.031,28677.0,28676.0,0.00018]
[1680661274405,0.40846156,28677.0,28676.0,0.00018]
[1680661274611,0.70846156,28677.0,28676.0,0.00018]
[1680661275032,0.71746156,28677.0,28676.0,0.001]
[1680661275258,0.75769506,28677.0,28676.0,0.001]
[1680661279841,0.30842,28677.0,28676.0,0.001]
[1680661280065,0.318881,28677.0,28676.0,0.001]
[1680661280583,0.350091,28677.0,28676.0,0.001]
[1680661280807,0.70480156,28677.0,28676.0,0.001]
[1680661281035,0.70459156,28677.0,28676.0,0.42859077]
[1680661281274,0.70459156,28677.0,28676.0,0.42877077]
[1680661282011,0.70459156,28677.0,28676.0,0.00118]
[1680661282248,0.72284393,28677.0,28676.0,0.001]
[1680661283714,0.75335661,28677.0,28676.0,0.001]
[1680661288593,0.85820022,28677.0,28676.0,0.001]
[1680661288813,0.75335661,28677.0,28676.0,0.001]
[1680661291625,0.74205661,28677.0,28676.0,0.001]
[1680661293414,0.73159561,28677.0,28676.0,0.001]
[1680661293637,0.74226661,28677.0,28676.0,0.001]
[1680661294083,0.74226661,28677.0,28675.0,0.23823169]
[1680661294325,0.67421056,28676.0,28675.0,0.23817169]
[1680661294550,0.67790756,28676.0,28675.0,0.23817169]
[1680661294957,0.323197,28676.0,28675.0,0.23817169]
[1680661295419,0.01971,28676.0,28675.0,0.23817169]
[1680661295619,0.0195,28676.0,28675.0,0.23817169]
[1680661295838,0.0205,28676.0,28675.0,0.23817169]
[1680661296062,0.023987,28676.0,28675.0,0.23817169]
[1680661298269,0.023987,28676.0,28674.0,0.00018]
[1680661298555,0.0195,28675.0,28673.0,0.45943479]
[1680661298761,0.022987,28675.0,28673.0,0.45943479]
[1680661299000,0.022987,28675.0,28673.0,0.45955479]
[1680661299203,0.022987,28675.0,28673.0,0.45961479]
[1680661299412,0.022987,28675.0,28674.0,0.005]
[1680661299610,0.003487,28675.0,28674.0,0.005]
[1680661299779,0.253487,28676.0,28673.0,0.45961479]
[1680661300036,0.003487,28675.0,28673.0,0.45961479]
[1680661300388,0.0197,28674.0,28673.0,0.01218]
[1680661300625,0.39333756,28674.0,28672.0,0.00018]
[1680661301271,0.38487156,28674.0,28672.0,0.39654972]
[1680661301469,0.008648,28673.0,28672.0,0.39654972]
[1680661301673,0.003487,28673.0,28672.0,0.47973056]
[1680661301876,0.303487,28673.0,28672.0,0.47973056]
[1680661302217,0.303487,28673.0,28672.0,0.10136084]
[1680661302445,0.303487,28673.0,28672.0,0.08336084]
[1680661302446,0.3,28673.0,28672.0,0.08336084]
[1680661302588,0.3,28673.0,28672.0,0.10136084]
[1680661303260,0.3,28673.0,28672.0,0.5368822]
[1680661303495,0.3,28673.0,28672.0,0.66165346]
[1680661303701,0.303487,28673.0,28672.0,0.66165346]
[1680661304773,0.3,28673.0,28672.0,0.66165346]
[1680661304985,0.303487,28673.0,28672.0,0.5368822]
[1680661305202,0.303487,28673.0,28672.0,0.10136084]
[1680661305424,0.312298,28673.0,28672.0,0.10136084]
[1680661305689,0.44909026,28673.0,28672.0,0.10136084]
[1680661305921,0.82038082,28673.0,28672.0,0.01818]
[1680661306376,0.82038082,28673.0,28672.0,0.01812]
[1680661306812,0.82038082,28673.0,28672.0,0.01818]
[1680661307330,0.14110016,28672.0,28670.0,0.43439783]
[1680661307527,0.003487,28671.0,28670.0,0.06063131]
[1680661307749,0.303487,28671.0,28670.0,0.06063131]
[1680661308420,0.303487,28671.0,28670.0,0.06363131]
[1680661308645,0.303487,28671.0,28670.0,0.06063131]
[1680661308859,0.306487,28671.0,28670.0,0.06063131]
[1680661309281,0.303487,28671.0,28670.0,0.06063131]
[1680661309713,0.303487,28671.0,28670.0,0.06363131]
[1680661312762,0.8415651,28671.0,28670.0,0.003]
[1680661313815,0.85846375,28671.0,28669.0,0.16648168]
[1680661314039,0.86167375,28671.0,28669.0,0.16636168]
[1680661314688,0.16760746,28670.0,28669.0,0.16636168]
[1680661314903,0.17109446,28670.0,28669.0,0.17636168]
[1680661315320,0.17109446,28670.0,28668.0,0.37449377]
[1680661315554,0.18001746,28670.0,28669.0,0.003]
[1680661315771,0.17109446,28670.0,28668.0,0.16648168]
[1680661316252,0.008578,28669.0,28667.0,0.37431377]
[1680661316471,0.319042,28669.0,28668.0,0.12479743]
[1680661316693,0.66538456,28669.0,28668.0,0.12479743]
[1680661317113,0.66538456,28669.0,28668.0,0.12779743]
[1680661317332,0.66538456,28669.0,28668.0,0.20799656]
[1680661317598,0.67538456,28669.0,28668.0,0.12579743]
[1680661318482,0.86332181,28669.0,28668.0,0.08420077]
[1680661318735,0.86332181,28669.0,28668.0,0.001]
[1680661319630,0.86332181,28669.0,28663.0,0.29133911]
[1680661319631,0.25060226,28668.0,28663.0,0.29133911]
[1680661319883,0.030064,28666.0,28663.0,0.29115911]
[1680661320111,0.030064,28666.0,28663.0,0.12479743]
[1680661320112,0.022988,28664.0,28663.0,0.12479743]
[1680661320332,0.37769856,28664.0,28663.0,0.12479743]
[1680661320561,0.68676756,28664.0,28663.0,0.12879743]
[1680661320795,0.328569,28664.0,28663.0,0.47991915]
[1680661321013,0.322988,28664.0,28663.0,0.48003915]
[1680661321220,0.324988,28664.0,28663.0,0.48003915]
[1680661322829,0.024988,28664.0,28663.0,0.48003915]
[1680661323061,0.024988,28664.0,28663.0,0.47991915]
[1680661323281,0.0215,28664.0,28663.0,0.47991915]
[1680661323506,0.024988,28664.0,28663.0,0.35512172]
[1680661326987,0.37969856,28664.0,28662.0,0.00018]
[1680661327188,0.71572756,28663.0,28660.0,0.02138]
[1680661327351,0.19084377,28664.0,28661.0,0.10894725]
[1680661327588,0.0195,28663.0,28662.0,0.44146454]
[1680661327951,0.0195,28663.0,28660.0,0.0212]
[1680661327952,0.022988,28663.0,28661.0,0.00018]
[1680661328174,0.022988,28663.0,28660.0,0.0212]
[1680661328175,0.322988,28663.0,28660.0,0.3691429]
[1680661328410,0.323198,28663.0,28660.0,0.3691429]
[1680661328636,0.323198,28663.0,28661.0,0.45993395]
[1680661328856,0.03678322,28662.0,28661.0,0.45993395]
[1680661329090,0.04027122,28662.0,28661.0,0.45993395]
[1680661330009,0.04927122,28662.0,28661.0,0.45993395]
[1680661330235,0.03678322,28662.0,28661.0,0.45993395]
[1680661330463,0.03678322,28662.0,28661.0,0.049706]
[1680661330464,0.00190322,28662.0,28661.0,0.049706]
[1680661330698,0.30178322,28662.0,28661.0,0.049646]
[1680661331139,0.30178322,28662.0,28661.0,0.059446]
[1680661331361,0.30178322,28662.0,28661.0,0.059626]
[1680661331582,0.3,28662.0,28661.0,0.059626]
[1680661331803,0.001,28662.0,28661.0,0.072626]
[1680661332030,0.003488,28663.0,28661.0,0.059446]
[1680661332247,0.003488,28663.0,28662.0,0.46208599]
[1680661332717,0.003488,28663.0,28662.0,0.41200799]
[1680661333391,0.003488,28663.0,28662.0,0.42130799]
[1680661333656,0.004488,28663.0,28662.0,0.42730799]
[1680661333925,0.004488,28663.0,28662.0,0.41800799]
[1680661334127,0.001,28663.0,28662.0,0.41800799]
[1680661337310,0.003488,28664.0,28662.0,0.41200799]
[1680661337510,0.001,28663.0,28662.0,0.41200799]
[1680661338441,0.003488,28664.0,28662.0,0.41200799]
[1680661339031,0.001,28663.0,28662.0,0.41800799]
[1680661339248,0.003488,28664.0,28662.0,0.41200799]
[1680661339419,0.35819856,28664.0,28662.0,0.41200799]
[1680661339617,0.66314356,28663.0,28662.0,0.41218799]
[1680661339826,0.66663156,28663.0,28662.0,0.41218799]
[1680661340651,0.66663156,28663.0,28662.0,0.41318799]
[1680661340652,0.68063156,28663.0,28662.0,0.41318799]
[1680661345364,0.014,28663.0,28662.0,0.38016658]
[1680661345880,0.0195,28664.0,28662.0,0.3754945]
[1680661346110,0.02,28663.0,28662.0,0.3763745]
[1680661346733,0.0195,28664.0,28662.0,0.3753745]
[1680661346859,0.0395,28664.0,28662.0,0.3763745]
[1680661347064,0.0195,28664.0,28662.0,0.3753745]
[1680661347286,0.02,28663.0,28662.0,0.3763745]
[1680661348364,0.02,28663.0,28662.0,0.3753745]
[1680661348591,0.003488,28664.0,28662.0,0.3753745]
[1680661348796,0.023488,28664.0,28662.0,0.3753745]
[1680661349021,0.003488,28664.0,28662.0,0.3753745]
[1680661349233,0.02,28663.0,28662.0,0.3763745]
[1680661349447,0.23185779,28664.0,28661.0,0.00018]
[1680661349670,0.23185779,28664.0,28660.0,0.0212]
[1680661349671,0.8730207,28663.0,28662.0,0.001]
[1680661349904,0.86368017,28663.0,28660.0,0.0212]
[1680661350125,0.88389017,28663.0,28662.0,0.001]
[1680661352123,0.91209017,28663.0,28662.0,0.001]
[1680661357606,0.72174056,28663.0,28662.0,0.001]
[1680661358709,0.93208804,28663.0,28662.0,0.001]
[1680661358930,0.72174056,28663.0,28662.0,0.001]
[1680661360242,0.1,28662.0,28660.0,0.0212]
[1680661360459,0.40713356,28661.0,28660.0,0.0212]
[1680661360711,0.70734356,28661.0,28660.0,0.0212]
[1680661361364,0.73434356,28661.0,28660.0,0.0212]
[1680661361572,0.91999119,28661.0,28660.0,0.0212]
[1680661361774,0.89299119,28661.0,28660.0,0.0212]
[1680661362021,0.91999119,28661.0,28660.0,0.0212]
[1680661362433,0.89299119,28661.0,28660.0,0.0212]
[1680661362642,0.99310581,28661.0,28660.0,0.0212]
[1680661362850,0.89299119,28661.0,28660.0,0.0212]
[1680661363518,0.91999119,28661.0,28660.0,0.0212]
[1680661363727,0.89299119,28661.0,28660.0,0.0212]
[1680661363928,0.91999119,28661.0,28660.0,0.0212]
[1680661364131,0.89299119,28661.0,28660.0,0.0212]
[1680661364341,0.91999119,28661.0,28660.0,0.0212]
[1680661364552,0.89299119,28661.0,28660.0,0.0212]
[1680661364761,0.91999119,28661.0,28660.0,0.0212]
[1680661365170,0.89299119,28661.0,28660.0,0.0212]
[1680661365375,0.91999119,28661.0,28660.0,0.0212]
[1680661365892,0.95421968,28661.0,28660.0,0.0212]
[1680661366312,0.92721968,28661.0,28660.0,0.0212]
[1680661366536,0.95421968,28661.0,28660.0,0.0212]
[1680661366757,0.76857205,28661.0,28660.0,0.0212]
[1680661367209,0.76857205,28661.0,28660.0,0.4730075]
[1680661368110,0.76816737,28661.0,28660.0,0.4731875]
[1680661368327,0.77641437,28661.0,28660.0,0.4731875]
[1680661368538,0.77667837,28661.0,28660.0,0.4731875]
[1680661368753,0.76816737,28661.0,28660.0,0.4731875]
[1680661369378,0.77669837,28661.0,28660.0,0.4731875]
[1680661369639,0.76816737,28661.0,28660.0,0.4731875]
[1680661369855,0.77643237,28661.0,28660.0,0.4731875]
[1680661370075,0.77643237,28661.0,28660.0,0.02138]
[1680661370292,0.77643237,28661.0,28660.0,0.0212]
[1680661370515,0.76816737,28661.0,28660.0,0.0212]
[1680661370737,0.77676237,28661.0,28660.0,0.0212]
[1680661371419,0.77296237,28661.0,28660.0,0.0212]
[1680661371875,0.71574437,28661.0,28660.0,0.53211765]
[1680661372098,0.71923337,28661.0,28660.0,0.44918143]
[1680661372342,0.73493337,28661.0,28660.0,0.53229765]
[1680661372566,0.69721588,28661.0,28660.0,0.53229765]
[1680661372793,0.70070488,28661.0,28660.0,0.53229765]
[1680661373021,0.70070488,28661.0,28660.0,0.44918143]
[1680661373476,0.70070488,28661.0,28660.0,0.53229765]
[1680661374136,0.70070488,28661.0,28660.0,0.44918143]
[1680661374807,0.70070488,28661.0,28660.0,0.53229765]
[1680661375031,0.93117575,28661.0,28660.0,0.02138]
[1680661375267,1.03479563,28661.0,28660.0,0.02138]
[1680661375501,0.94806375,28661.0,28660.0,0.02138]
[1680661376354,0.94806375,28661.0,28660.0,0.0212]
[1680661377656,0.98251926,28661.0,28660.0,0.0212]
[1680661379779,0.98251926,28661.0,28660.0,0.02138]
[1680661381599,0.98251926,28661.0,28660.0,0.0212]
[1680661383156,0.74366039,28661.0,28660.0,0.0212]
[1680661383370,0.74366039,28661.0,28660.0,0.35285942]
[1680661383580,0.74366039,28661.0,28660.0,0.35303942]
[1680661384257,0.74366039,28661.0,28660.0,0.02138]
[1680661384495,0.74366039,28661.0,28660.0,0.0212]
[1680661384496,0.75221339,28661.0,28660.0,0.0212]
[1680661384706,0.74366039,28661.0,28660.0,0.02138]
[1680661384915,0.75166839,28661.0,28660.0,0.02138]
[1680661385778,0.74366039,28661.0,28660.0,0.02138]
[1680661385991,0.75205239,28661.0,28660.0,0.02138]
[1680661386465,0.74366039,28661.0,28660.0,0.0212]
[1680661386685,0.74366039,28661.0,28660.0,0.11043513]
[1680661386902,0.74366039,28661.0,28660.0,0.11061513]
[1680661387120,0.75231839,28661.0,28660.0,0.02138]
[1680661387338,0.74366039,28661.0,28660.0,0.0212]
[1680661388016,0.74366039,28661.0,28660.0,0.02138]
[1680661388928,0.75206939,28661.0,28660.0,0.02138]
[1680661389149,0.85135273,28661.0,28660.0,0.0212]
[1680661389378,1.0782012,28661.0,28660.0,0.0212]
[1680661391315,1.0791012,28661.0,28660.0,0.0212]
[1680661396346,1.08766082,28661.0,28660.0,0.0212]
[1680661396768,1.45536082,28661.0,28660.0,0.0212]
[1680661397913,0.20408057,28660.0,28657.0,0.10827355]
[1680661398119,0.0166,28658.0,28657.0,0.10827355]
[1680661398251,0.59625467,28658.0,28657.0,0.10827355]
[1680661398450,0.90475467,28658.0,28657.0,0.10827355]
[1680661398679,0.90475467,28658.0,28657.0,0.08311622]
[1680661399291,0.92375467,28658.0,28657.0,0.08311622]
[1680661399980,0.92375467,28658.0,28656.0,0.08329622]
[1680661400132,0.67981056,28657.0,28656.0,0.08311622]
[1680661400384,0.69027856,28657.0,28656.0,0.08311622]
[1680661400774,0.69027856,28657.0,28655.0,0.62227823]
[1680661401405,0.69027856,28657.0,28656.0,0.08346858]
[1680661401891,0.68527856,28657.0,28656.0,0.08346858]
[1680661402100,0.69127856,28657.0,28656.0,0.08346858]
[1680661402282,0.67829956,28657.0,28656.0,0.08346858]
[1680661402805,0.69029956,28657.0,28656.0,0.08346858]
[1680661403265,0.69029956,28657.0,28655.0,0.62227823]
[1680661403487,0.69029956,28657.0,28656.0,0.08346212]
[1680661404521,0.67829956,28657.0,28656.0,0.08346212]
[1680661404735,0.68429956,28657.0,28656.0,0.08346212]
[1680661404948,0.67829956,28657.0,28656.0,0.08346212]
[1680661405163,0.69029956,28657.0,28656.0,0.08346212]
[1680661406041,0.77386785,28657.0,28656.0,0.08346212]
[1680661407322,0.69029956,28657.0,28656.0,0.08346212]
[1680661408882,0.69829256,28657.0,28656.0,0.08346212]
[1680661409418,0.69029956,28657.0,28656.0,0.08346212]
[1680661411592,0.68829956,28657.0,28656.0,0.08346212]
[1680661412252,0.69608356,28657.0,28656.0,0.08346212]
[1680661412479,0.68850956,28657.0,28655.0,0.23002425]
[1680661412711,0.79649596,28657.0,28655.0,0.22984425]
[1680661412900,0.79670596,28657.0,28655.0,0.22984425]
[1680661413596,0.67650956,28657.0,28655.0,0.22984425]
[1680661413816,0.68250956,28657.0,28656.0,0.08346212]
[1680661414486,0.67650956,28657.0,28656.0,0.08346212]
[1680661414929,0.68850956,28657.0,28656.0,0.08346212]
[1680661417514,0.68850956,28657.0,28656.0,0.17389108]
[1680661417515,0.67652056,28657.0,28656.0,0.17389108]
[1680661417971,0.67652056,28657.0,28656.0,0.29904603]
[1680661418200,0.67652056,28657.0,28656.0,0.21561109]
[1680661418638,0.31221,28657.0,28656.0,0.26389609]
[1680661418857,0.01221,28657.0,28656.0,0.26389609]
[1680661419088,0.012,28657.0,28656.0,0.43025777]
[1680661419331,0.012,28657.0,28656.0,0.21561109]
[1680661419560,0.012,28657.0,28656.0,0.26657209]
[1680661419774,0.012,28657.0,28656.0,0.30775164]
[1680661420429,0.012,28657.0,28656.0,0.43293371]
[1680661420664,0.012,28657.0,28656.0,0.43293684]
[1680661420918,0.012,28657.0,28656.0,0.21732268]
[1680661421141,0.012,28657.0,28656.0,0.050961]
[1680661421364,0.012,28657.0,28656.0,0.48047986]
[1680661421579,0.012,28657.0,28656.0,0.74927312]
[1680661421772,0.012,28657.0,28656.0,0.54083061]
[1680661422017,0.012,28657.0,28656.0,0.74943486]
[1680661422640,0.003489,28659.0,28656.0,0.74943486]
[1680661422864,0.3,28659.0,28658.0,0.08344154]
[1680661423083,0.30021,28659.0,28658.0,0.08344154]
[1680661423643,0.303699,28659.0,28658.0,0.08344154]
[1680661424298,0.30021,28659.0,28658.0,0.08444154]
[1680661424520,0.00021,28659.0,28658.0,0.08344154]
[1680661424738,0.3,28659.0,28658.0,0.08344154]
[1680661424956,0.30021,28659.0,28658.0,0.08344154]
[1680661425179,0.303699,28659.0,28658.0,0.08344154]
[1680661425456,0.309699,28659.0,28658.0,0.08344154]
[1680661425749,0.303699,28659.0,28658.0,0.08344154]
[1680661426019,0.309699,28659.0,28658.0,0.20860385]
[1680661426255,0.303699,28659.0,28658.0,0.20860385]
[1680661426472,0.322699,28659.0,28658.0,0.20860385]
[1680661427609,0.01921,28659.0,28658.0,0.51846109]
[1680661427825,0.319,28659.0,28658.0,0.51846109]
[1680661428037,0.322699,28659.0,28658.0,0.51846109]
[1680661428910,0.022699,28659.0,28658.0,0.51846109]
[1680661429122,0.022489,28659.0,28658.0,0.6019638]
[1680661429337,0.022489,28659.0,28658.0,0.51846109]
[1680661429565,0.019,28659.0,28658.0,0.51846109]
[1680661429995,0.019,28659.0,28658.0,0.12516231]
[1680661430185,0.019,28659.0,28658.0,0.54664737]
[1680661432012,0.019,28659.0,28658.0,0.39743823]
[1680661432441,0.319,28659.0,28658.0,0.39743823]
[1680661432630,0.294,28659.0,28658.0,0.39761823]
[1680661434742,0.64871056,28659.0,28658.0,0.08368927]
[1680661434964,0.64871056,28659.0,28658.0,0.08350927]
[1680661434965,1.01965132,28659.0,28658.0,0.08350927]
[1680661435623,1.02815132,28659.0,28658.0,0.08350927]
[1680661436071,1.03625132,28659.0,28658.0,0.08350927]
[1680661437485,1.03625132,28659.0,28658.0,0.03938649]
[1680661438753,1.03646132,28659.0,28658.0,0.03938649]
[1680661438978,1.03646132,28659.0,28656.0,0.16700307]
[1680661439186,0.37131056,28658.0,28656.0,0.16688307]
[1680661439399,0.303489,28657.0,28656.0,0.16706307]
[1680661439621,0.65819956,28657.0,28656.0,0.16706307]
[1680661440715,0.65471056,28657.0,28656.0,0.16706307]
[1680661441203,0.65871056,28657.0,28656.0,0.16706307]
[1680661441867,0.65471056,28657.0,28656.0,0.16706307]
[1680661442091,0.66281056,28657.0,28656.0,0.17006307]
[1680661443550,0.3,28657.0,28656.0,0.51486717]
[1680661443789,0.00021,28658.0,28656.0,0.77145542]
[1680661444008,0.3081,28659.0,28657.0,0.17520437]
[1680661444226,0.66281056,28659.0,28657.0,0.29215144]
[1680661444446,0.66302056,28659.0,28657.0,0.29215144]
[1680661444881,0.30831,28659.0,28657.0,0.12526837]
[1680661445103,0.3251,28659.0,28658.0,0.048662]
[1680661445327,0.30831,28659.0,28658.0,0.048662]
[1680661446192,0.31831,28659.0,28658.0,0.048662]
[1680661446482,0.30831,28659.0,28658.0,0.048662]
[1680661446699,0.32631,28659.0,28658.0,0.050662]
[1680661446909,0.30831,28659.0,28657.0,0.50150582]
[1680661447121,0.30831,28659.0,28658.0,0.047268]
[1680661447335,0.32531,28659.0,28658.0,0.002]
[1680661447558,0.32531,28659.0,28658.0,0.08551191]
[1680661447776,0.30831,28659.0,28658.0,0.13137191]
[1680661447994,0.32631,28659.0,28658.0,0.34681405]
[1680661448217,0.30831,28659.0,28658.0,0.34481405]
[1680661449175,0.32531,28659.0,28658.0,0.34681405]
[1680661449423,0.30831,28659.0,28658.0,0.34481405]
[1680661449636,0.32631,28659.0,28658.0,0.34681405]
[1680661450069,0.30831,28659.0,28658.0,0.34481405]
[1680661450299,0.32531,28659.0,28658.0,0.34681405]
[1680661450516,0.30831,28659.0,28658.0,0.34481405]
[1680661450732,0.32631,28659.0,28658.0,0.34681405]
[1680661450920,0.30831,28659.0,28658.0,0.34481405]
[1680661451135,0.32531,28659.0,28658.0,0.47208242]
[1680661451364,0.32461,28659.0,28658.0,0.34681405]
[1680661451585,0.32461,28659.0,28658.0,0.47208242]
[1680661451798,0.32461,28659.0,28658.0,0.52222242]
[1680661452242,0.30761,28659.0,28658.0,0.52022242]
[1680661452458,0.32561,28659.0,28658.0,0.52022242]
[1680661452672,0.30761,28659.0,28658.0,0.52022242]
[1680661452919,0.32461,28659.0,28658.0,0.52222242]
[1680661453143,0.30761,28659.0,28658.0,0.52022242]
[1680661453360,0.32561,28659.0,28658.0,0.52222242]
[1680661453572,0.30761,28659.0,28658.0,0.47008242]
[1680661453765,0.32461,28659.0,28658.0,0.47208242]
[1680661453931,0.30761,28659.0,28658.0,0.47008242]
[1680661454381,0.30761,28659.0,28658.0,0.38657051]
[1680661454958,0.32561,28659.0,28658.0,0.38857051]
[1680661455168,0.30761,28659.0,28658.0,0.38657051]
[1680661455377,0.32461,28659.0,28658.0,0.43819251]
[1680661457231,0.32461,28659.0,28658.0,0.17689037]
[1680661457448,0.66198952,28659.0,28658.0,0.08551953]
[1680661457864,1.01670008,28659.0,28658.0,0.08551953]
[1680661458075,1.03385308,28659.0,28658.0,0.08551953]
[1680661458733,1.02520008,28659.0,28658.0,0.08551953]
[1680661463125,1.02520008,28659.0,28658.0,0.2107879]
[1680661463335,1.02520008,28659.0,28658.0,0.08551953]
[1680661463546,1.02520008,28659.0,28658.0,0.2107879]
[1680661463731,1.02520008,28659.0,28658.0,0.21083224]
[1680661464477,1.02520008,28659.0,28658.0,0.12726837]
[1680661464728,1.02171108,28659.0,28658.0,0.12726837]
[1680661464953,1.02520008,28659.0,28658.0,0.21082992]
[1680661465163,1.02520008,28659.0,28658.0,0.12726837]
[1680661465814,1.02520008,28659.0,28658.0,0.21081241]
[1680661466460,1.02520008,28659.0,28658.0,0.21081175]
[1680661466892,1.02520008,28659.0,28658.0,0.12726837]
[1680661470215,1.02520008,28659.0,28658.0,0.21082342]
[1680661470644,0.69130956,28659.0,28658.0,0.21082342]
[1680661471652,0.68782056,28659.0,28658.0,0.45383696]
[1680661471870,0.67932056,28659.0,28658.0,0.45383696]
[1680661472073,0.67932056,28659.0,28658.0,0.50423096]
[1680661473773,0.67932056,28659.0,28658.0,0.45383696]
[1680661474680,0.32461,28659.0,28658.0,0.21082342]
[1680661475953,0.32461,28659.0,28658.0,0.12726837]
[1680661476604,0.32461,28659.0,28658.0,0.17965037]
[1680661477741,0.32461,28659.0,28658.0,0.17666137]
[1680661478374,0.32461,28659.0,28658.0,0.12726837]
[1680661478583,0.32461,28659.0,28658.0,0.17596637]
[1680661481253,0.328099,28659.0,28658.0,0.17596637]
[1680661481470,0.328099,28659.0,28658.0,0.12726837]
[1680661481894,0.58913807,28659.0,28658.0,0.12726837]
[1680661482103,0.94384863,28659.0,28658.0,0.12726837]
[1680661482317,0.94384863,28659.0,28658.0,0.21081344]
[1680661482740,0.94384863,28659.0,28658.0,0.08554507]
[1680661483177,0.95234863,28659.0,28658.0,0.08554507]
[1680661483817,0.95194394,28659.0,28658.0,0.08554507]
[1680661485170,0.95203394,28659.0,28658.0,0.08554507]
[1680661485381,0.95194394,28659.0,28658.0,0.08554507]
[1680661487098,0.95215394,28659.0,28658.0,0.08054507]
[1680661493563,0.69111487,28659.0,28658.0,0.08054507]
[1680661493801,0.71356487,28659.0,28656.0,0.00018]
[1680661494017,0.0074,28657.0,28655.0,0.0212]
[1680661494235,0.36569956,28656.0,28655.0,0.0212]
[1680661494481,0.36569956,28656.0,28655.0,0.02132]
[1680661494482,0.67419956,28656.0,28655.0,0.02132]
[1680661494702,0.67419956,28656.0,28655.0,0.14658837]
[1680661494925,0.67419956,28656.0,28655.0,0.14664837]
[1680661495378,0.67419956,28656.0,28655.0,0.02138]
[1680661495601,0.69619956,28656.0,28655.0,0.0212]
[1680661495840,0.70461056,28656.0,28655.0,0.0212]
[1680661496066,0.69619956,28656.0,28655.0,0.0212]
[1680661497172,0.69619956,28656.0,28655.0,0.10474016]
[1680661497383,0.69619956,28656.0,28655.0,0.10486016]
[1680661497822,1.12717097,28656.0,28655.0,0.02132]
[1680661498049,1.13548697,28656.0,28655.0,0.0212]
[1680661499417,1.13569697,28656.0,28655.0,0.0212]
[1680661499630,1.1342944,28656.0,28655.0,0.0212]
[1680661500337,1.03500585,28656.0,28655.0,0.0212]
[1680661500546,1.06200585,28656.0,28655.0,0.0212]
[1680661500735,1.03500585,28656.0,28655.0,0.0212]
[1680661500973,1.06200585,28656.0,28655.0,0.0212]
[1680661501183,1.03500585,28656.0,28655.0,0.0212]
[1680661501369,1.06200585,28656.0,28655.0,0.0212]
[1680661501614,1.20709114,28656.0,28655.0,0.0212]
[1680661502040,1.06200585,28656.0,28655.0,0.0212]
[1680661503530,1.06201585,28656.0,28655.0,0.0212]
[1680661503739,1.05041085,28656.0,28655.0,0.0212]
[1680661504582,1.05389985,28656.0,28655.0,0.0212]
[1680661505471,1.05041085,28656.0,28655.0,0.0212]
[1680661505680,1.05389985,28656.0,28655.0,0.0212]
[1680661506558,1.06215185,28656.0,28655.0,0.0212]
[1680661506771,1.05020085,28656.0,28655.0,0.0212]
[1680661507207,1.05368985,28656.0,28655.0,0.0212]
[1680661507652,1.05020085,28656.0,28655.0,0.0212]
[1680661507903,1.05368985,28656.0,28655.0,0.0212]
[1680661508117,1.05020085,28656.0,28655.0,0.0212]
[1680661508325,1.05368985,28656.0,28655.0,0.0212]
[1680661510100,0.2659928,28655.0,28652.0,0.1378158]
[1680661510323,0.3,28654.0,28653.0,0.3681851]
[1680661510584,0.30771,28654.0,28653.0,0.45160976]
[1680661511006,0.30771,28654.0,28653.0,0.45148972]
[1680661511539,0.30771,28654.0,28653.0,0.36806506]
[1680661512008,0.33471,28654.0,28653.0,0.36806506]
[1680661515920,0.32721,28654.0,28653.0,0.048721]
[1680661516132,0.027,28654.0,28653.0,0.55063676]
[1680661516339,0.327,28654.0,28653.0,0.55063676]
[1680661516552,0.327,28654.0,28653.0,0.55081676]
[1680661516782,0.32691458,28654.0,28653.0,0.55081676]
[1680661517452,0.3,28654.0,28653.0,0.55081676]
[1680661517663,0.009,28654.0,28653.0,0.55081676]
[1680661517895,0.30761,28656.0,28654.0,0.049685]
[1680661518113,0.30761,28656.0,28655.0,0.049065]
[1680661518946,0.32961,28656.0,28655.0,0.049065]
[1680661519388,0.32221,28656.0,28655.0,0.13249122]
[1680661519642,0.02221,28656.0,28655.0,0.13249122]
[1680661519856,0.02221,28656.0,28655.0,0.08342622]
[1680661519857,0.322,28656.0,28655.0,0.08342622]
[1680661520047,0.32221,28656.0,28655.0,0.08342622]
[1680661520241,0.32221,28656.0,28655.0,0.13475822]
[1680661522379,0.32221,28656.0,28655.0,0.51752281]
[1680661522799,0.02221,28656.0,28655.0,0.51752281]
[1680661523033,0.022,28656.0,28655.0,0.51752281]
[1680661523786,0.022,28656.0,28654.0,0.08354622]
[1680661523975,0.022,28656.0,28655.0,0.51445225]
[1680661524203,0.022,28656.0,28655.0,0.48125803]
[1680661524426,0.022,28656.0,28655.0,0.43102603]
[1680661524644,0.022,28656.0,28655.0,0.56311625]
[1680661524858,0.022,28656.0,28655.0,0.51445225]
[1680661525296,0.022,28656.0,28655.0,0.56428925]
[1680661526386,0.022,28656.0,28655.0,0.56442225]
[1680661527377,0.022,28656.0,28655.0,0.51445225]
[1680661530885,0.02180529,28656.0,28655.0,0.51445225]
[1680661532492,0.02180529,28656.0,28655.0,0.56681278]
[1680661532697,0.07871983,28656.0,28655.0,0.78484615]
[1680661532947,0.07871983,28656.0,28655.0,0.6596406]
[1680661533395,0.05691454,28656.0,28655.0,0.6596406]
[1680661533614,0.05691454,28656.0,28655.0,0.6606406]
[1680661533615,0.06591454,28656.0,28655.0,0.6606406]
[1680661537788,0.07341454,28656.0,28655.0,0.6606406]
[1680661539269,0.07341454,28656.0,28655.0,0.16806307]
[1680661539547,0.37341454,28656.0,28655.0,0.12650913]
[1680661540937,0.37341454,28656.0,28655.0,0.2933922]
[1680661541142,0.37341454,28656.0,28655.0,0.12650913]
[1680661543074,0.37341454,28656.0,28655.0,0.2933922]
[1680661543265,0.37341454,28656.0,28655.0,0.12650913]
[1680661544451,0.7485961,28656.0,28655.0,0.08474091]
[1680661544655,1.08733505,28656.0,28655.0,0.08474091]
[1680661544856,1.08747405,28656.0,28655.0,0.00118]
[1680661545113,1.07885305,28656.0,28655.0,0.08468091]
[1680661545333,1.07885305,28656.0,28655.0,0.08474091]